fUSD/lending_fUSD_20240630
["ID","MTS","AMOUNT","RATE_DAILY","PERIOD"]
[330748840,1719755463220,-151.0,0.00013917,2]
[330748841,1719755463229,-500.0,0.00013917,3]
[330748842,1719755463239,-500.0,0.00013917,3]
[330748843,1719755463248,-500.0,0.00013917,3]
[330748844,1719755463257,-786.17,0.00013917,3]
[330748845,1719755463267,-500.0,0.00013917,3]
[330748846,1719755463276,-500.0,0.00013917,3]
[330748847,1719755463286,-500.0,0.00013917,3]
[330748848,1719755463295,-500.0,0.00013917,2]
[330748849,1719755463305,-582.78,0.00013917,3]
[330748850,1719755463314,-500.0,0.00013917,3]
[330748851,1719755463324,-544.15,0.00013917,3]
[330748852,1719755463334,-284.315101,0.00013917,2]
[330748853,1719755463344,-500.0,0.00013917,3]
[330748854,1719755463353,-500.0,0.00013917,3]
[330748855,1719755463363,-151.0,0.00013917,2]
[330748856,1719755463372,-4117.59,0.00013917,3]
[330748857,1719755463382,-437.423639,0.00013917,2]
[330748858,1719755463392,-500.0,0.00013917,3]
[330748859,1719755463402,-500.0,0.00013917,3]
[330748860,1719755463414,-437.423639,0.00013917,2]
[330748861,1719755463424,-500.0,0.00013917,3]
[330748862,1719755463434,-500.0,0.00013917,3]
[330748863,1719755463443,-500.0,0.00013917,3]
[330748864,1719755463453,-613.82,0.00013917,3]
[330748865,1719755463463,-500.0,0.00013917,3]
[330748866,1719755463474,-230.305039,0.00013917,2]
[330748867,1719755463484,-766.18,0.00013917,3]
[330748868,1719755463494,-9703.03304,0.00013917,2]
[330748869,1719755463504,-500.0,0.00013917,3]
[330748870,1719755463513,-230.305039,0.00013917,2]
[330748871,1719755463523,-842.1,0.00013917,3]
[330748872,1719755463533,-500.0,0.00013917,3]
[330748873,1719755463543,-500.0,0.00013917,3]
[330748874,1719755463553,-500.0,0.00013917,3]
[330748875,1719755463564,-500.0,0.00013917,3]
[330748876,1719755463575,-500.0,0.00013917,3]
[330748877,1719755463586,-500.0,0.00013917,3]
[330748878,1719755463595,-500.0,0.00013917,3]
[330748879,1719755463605,-933.76,0.00013917,3]
[330748880,1719755463614,-500.0,0.00013917,3]
[330748881,1719755463624,-500.0,0.00013917,3]
[330748882,1719755463634,-500.0,0.00013917,3]
[330748883,1719755463644,-356.79055133,0.00013917,3]
[330748884,1719755463653,-1403.52,0.00013917,3]
[330748885,1719755463666,-500.0,0.00013917,3]
[330748886,1719755463676,-500.0,0.00013917,3]
[330748887,1719755463685,-616.73,0.00013917,3]
[330748888,1719755463695,-500.0,0.00013917,3]
[330748889,1719755463705,-500.0,0.00013917,3]
[330748890,1719755463715,-500.0,0.00013917,3]
[330748891,1719755463724,-500.0,0.00013917,3]
[330748892,1719755463734,-534.11,0.00013917,3]
[330748893,1719755463744,-500.0,0.00013917,3]
[330748894,1719755463755,-500.0,0.00013917,3]
[330748895,1719755463764,-500.0,0.00013917,3]
[330748896,1719755463774,-500.0,0.00013917,3]
[330748897,1719755463783,-503.060598,0.00013917,2]
[330748898,1719755463792,-500.0,0.00013917,3]
[330748899,1719755463802,-304.780686,0.00013917,2]
[330748900,1719755463811,-500.0,0.00013917,3]
[330748901,1719755463821,-503.060598,0.00013917,2]
[330748902,1719755463831,-573.903452,0.00013917,2]
[330748903,1719755463841,-500.0,0.00013917,3]
[330748904,1719755463855,-648.58,0.00013917,3]
[330748905,1719755463866,-500.0,0.00013917,3]
[330748906,1719755463876,-668.63,0.00013917,3]
[330748907,1719755463886,-518.15,0.00013917,3]
[330748908,1719755463897,-304.780686,0.00013917,2]
[330748909,1719755463908,-1137.4,0.00013917,3]
[330748910,1719755463917,-193.89,0.00013917,3]
[330748911,1719755463927,-500.0,0.00013917,3]
[330748912,1719755463938,-1083.957781,0.00013917,2]
[330748913,1719755463948,-573.903452,0.00013917,2]
[330748914,1719755463958,-500.0,0.00013917,3]
[330748915,1719755463969,-1083.957781,0.00013917,2]
[330748916,1719755463979,-750.23,0.00013917,3]
[330748917,1719755463991,-500.0,0.00013917,3]
[330748918,1719755464001,-500.0,0.00013917,3]
[330748919,1719755464012,-565.47,0.00013917,3]
[330748920,1719755464022,-500.0,0.00013917,3]
[330748921,1719755464032,-964.26,0.00013917,3]
[330748922,1719755464042,-500.0,0.00013917,3]
[330748923,1719755464052,-500.0,0.00013917,3]
[330748924,1719755464063,-502.48,0.00013917,3]
[330748925,1719755464073,-500.0,0.00013917,3]
[330748926,1719755464083,-905.38,0.00013917,3]
[330748927,1719755464093,-762.19,0.00013917,3]
[330748928,1719755464104,-1355.12,0.00013917,3]
[330748929,1719755464114,-267.298398,0.00013917,2]
[330748930,1719755464124,-500.0,0.00013917,3]
[330748931,1719755464134,-500.0,0.00013917,3]
[330748932,1719755464144,-500.0,0.00013917,3]
[330748933,1719755464154,-500.0,0.00013917,3]
[330748934,1719755464166,-151.0,0.00013917,2]
[330748935,1719755464176,-267.298398,0.00013917,2]
[330748936,1719755464186,-662.1,0.00013917,3]
[330748937,1719755464196,-500.0,0.00013917,3]
[330748938,1719755464206,-164.331753,0.00013917,2]
[330748939,1719755464216,-151.0,0.00013917,2]
[330748940,1719755464227,-231.851772,0.00013917,2]
[330748941,1719755464237,-765.23,0.00013917,3]
[330748942,1719755464247,-690.29,0.00013917,3]
[330748943,1719755464256,-877.24,0.00013917,3]
[330748944,1719755464266,-500.0,0.00013917,3]
[330748945,1719755464277,-2125.733205,0.00013917,2]
[330748946,1719755464286,-713.88,0.00013917,3]
[330748947,1719755464296,-500.0,0.00013917,3]
[330748948,1719755464306,-500.0,0.00013917,3]
[330748949,1719755464316,-1457.02,0.00013917,3]
[330748950,1719755464326,-231.851772,0.00013917,2]
[330748951,1719755464336,-2125.733205,0.00013917,2]
[330748952,1719755464346,-500.0,0.00013917,3]
[330748953,1719755464356,-1059.53,0.00013917,3]
[330748954,1719755464366,-405.042875,0.00013917,2]
[330748955,1719755464376,-639.03,0.00013917,3]
[330748956,1719755464386,-1241.5,0.00013917,3]
[330748957,1719755464396,-500.0,0.00013917,3]
[330748958,1719755464406,-405.042875,0.00013917,2]
[330748959,1719755464416,-500.0,0.00013917,3]
[330748960,1719755464426,-151.0,0.00013917,2]
[330748961,1719755464436,-500.0,0.00013917,3]
[330748962,1719755464447,-500.0,0.00013917,3]
[330748963,1719755464456,-737.63,0.00013917,3]
[330748964,1719755464466,-500.0,0.00013917,3]
[330748965,1719755464476,-1349.88,0.00013917,3]
[330748966,1719755464486,-151.0,0.00013917,2]
[330748967,1719755464496,-500.0,0.00013917,3]
[330748968,1719755464506,-500.0,0.00013917,3]
[330748969,1719755464517,-500.0,0.00013917,3]
[330748970,1719755464527,-561.34,0.00013917,3]
[330748971,1719755464538,-604.72,0.00013917,3]
[330748972,1719755464549,-500.0,0.00013917,3]
[330748973,1719755464559,-500.0,0.00013917,3]
[330748974,1719755464569,-500.0,0.00013917,3]
[330748975,1719755464581,-500.0,0.00013917,3]
[330748976,1719755464592,-957.39,0.00013917,3]
[330748977,1719755464602,-191.133074,0.00013917,2]
[330748978,1719755464612,-500.0,0.00013917,3]
[330748979,1719755464624,-622.85226196,0.00013917,3]
[330748980,1719755464633,-764.6,0.00013917,3]
[330748981,1719755464644,-191.133074,0.00013917,2]
[330748982,1719755464656,-660.46,0.00013917,3]
[330748983,1719755464667,-500.0,0.00013917,3]
[330748984,1719755464680,-151.0,0.00013917,2]
[330748985,1719755464690,-604.79,0.00013917,3]
[330748986,1719755464700,-500.0,0.00013917,3]
[330748987,1719755464710,-905.53,0.00013917,3]
[330748988,1719755464721,-500.0,0.00013917,3]
[330748989,1719755464731,-526.22,0.00013917,3]
[330748990,1719755464741,-500.0,0.00013917,3]
[330748991,1719755464751,-229.488912,0.00013917,2]
[330748992,1719755464760,-229.488912,0.00013917,2]
[330748993,1719755464771,-500.0,0.00013917,3]
[330748994,1719755464781,-500.0,0.00013917,3]
[330748995,1719755464791,-500.0,0.00013917,3]
[330748996,1719755464800,-622.84,0.00013917,3]
[330748997,1719755464811,-1277.66,0.00013917,3]
[330748998,1719755464821,-500.0,0.00013917,3]
[330748999,1719755464830,-500.0,0.00013917,3]
[330749000,1719755464839,-1641.91,0.00013917,3]
[330749001,1719755464849,-500.0,0.00013917,3]
[330749002,1719755464859,-500.0,0.00013917,3]
[330749003,1719755464869,-151.0,0.00013917,2]
[330749004,1719755464879,-707.52,0.00013917,3]
[330749005,1719755464889,-500.0,0.00013917,3]
[330749006,1719755464899,-616.94,0.00013917,3]
[330749007,1719755464909,-151.0,0.00013917,2]
[330749008,1719755464919,-151.0,0.00013917,2]
[330749009,1719755464928,-500.0,0.00013917,3]
[330749010,1719755464938,-1304.99,0.00013917,3]
[330749011,1719755464948,-620.52,0.00013917,3]
[330749012,1719755464957,-500.0,0.00013917,3]
[330749013,1719755464967,-500.0,0.00013917,3]
[330749014,1719755464977,-500.0,0.00013917,3]
[330749015,1719755464989,-500.0,0.00013917,3]
[330749016,1719755464998,-721.33,0.00013917,3]
[330749017,1719755465008,-700.83,0.00013917,3]
[330749018,1719755465019,-500.0,0.00013917,3]
[330749019,1719755465028,-504.24,0.00013917,3]
[330749020,1719755465038,-832.16,0.00013917,3]
[330749021,1719755465047,-500.0,0.00013917,3]
[330749022,1719755465056,-614.4,0.00013917,3]
[330749023,1719755465066,-151.0,0.00013917,2]
[330749024,1719755465076,-500.0,0.00013917,3]
[330749025,1719755465086,-500.0,0.00013917,3]
[330749026,1719755465096,-191.884164,0.00013917,2]
[330749027,1719755465106,-1044.88,0.00013917,3]
[330749028,1719755465116,-500.0,0.00013917,3]
[330749029,1719755465126,-151.0,0.00013917,2]
[330749030,1719755465135,-191.884164,0.00013917,2]
[330749031,1719755465144,-500.0,0.00013917,3]
[330749032,1719755465153,-151.0,0.00013917,2]
[330749033,1719755465163,-508.002238,0.00013917,2]
[330749034,1719755465173,-500.0,0.00013917,3]
[330749035,1719755465182,-507.13,0.00013917,3]
[330749036,1719755465191,-500.0,0.00013917,3]
[330749037,1719755465200,-151.0,0.00013917,2]
[330749038,1719755465209,-500.0,0.00013917,3]
[330749039,1719755465305,-500.0,0.00013917,3]
[330749040,1719755465316,-508.002238,0.00013917,2]
[330749041,1719755465325,-500.0,0.00013917,3]
[330749042,1719755465334,-881.23,0.00013917,3]
[330749043,1719755465343,-517.3,0.00013917,3]
[330749044,1719755465353,-404.25,0.00013917,3]
[330749045,1719755465364,-500.0,0.00013917,3]
[330749046,1719755465373,-500.0,0.00013917,3]
[330749047,1719755465383,-891.0,0.00013917,3]
[330749048,1719755465392,-656.4,0.00013917,3]
[330749049,1719755465402,-957.05,0.00013917,3]
[330749050,1719755465413,-689.57,0.00013917,3]
[330749051,1719755465422,-1173.05,0.00013917,3]
[330749052,1719755465432,-500.0,0.00013917,3]
[330749053,1719755465441,-151.0,0.00013917,2]
[330749054,1719755465451,-500.0,0.00013917,3]
[330749055,1719755465461,-151.0,0.00013917,2]
[330749056,1719755465471,-507.92,0.00013917,3]
[330749057,1719755465481,-1771.17541,0.00013917,2]
[330749058,1719755465490,-500.0,0.00013917,3]
[330749059,1719755465501,-500.0,0.00013917,3]
[330749060,1719755465510,-151.0,0.00013917,2]
[330749061,1719755465519,-904.41,0.00013917,3]
[330749062,1719755465529,-544.05,0.00013917,3]
[330749063,1719755465539,-236.916694,0.00013917,2]
[330749064,1719755465548,-500.0,0.00013917,3]
[330749065,1719755465558,-500.0,0.00013917,3]
[330749066,1719755465568,-1771.17541,0.00013917,2]
[330749067,1719755465582,-500.0,0.00013917,3]
[330749068,1719755465591,-703.63,0.00013917,3]
[330749069,1719755465600,-592.64,0.00013917,3]
[330749070,1719755465610,-500.0,0.00013917,3]
[330749071,1719755465620,-500.0,0.00013917,3]
[330749072,1719755465630,-151.0,0.00013917,2]
[330749073,1719755465639,-499.63,0.00013917,3]
[330749074,1719755465648,-151.0,0.00013917,2]
[330749075,1719755465662,-500.0,0.00013917,3]
[330749076,1719755465673,-180.81,0.00013917,3]
[330749077,1719755465682,-759.3,0.00013917,3]
[330749078,1719755465692,-500.0,0.00013917,3]
[330749079,1719755465701,-500.0,0.00013917,3]
[330749080,1719755465710,-500.0,0.00013917,3]
[330749081,1719755465719,-500.0,0.00013917,3]
[330749082,1719755465729,-910.64,0.00013917,3]
[330749083,1719755465738,-500.0,0.00013917,3]
[330749084,1719755465748,-641.73,0.00013917,3]
[330749085,1719755465758,-500.0,0.00013917,3]
[330749086,1719755465767,-544.61,0.00013917,3]
[330749087,1719755465778,-590.62,0.00013917,3]
[330749088,1719755465787,-151.0,0.00013917,2]
[330749089,1719755465796,-689.38,0.00013917,3]
[330749090,1719755465806,-500.0,0.00013917,3]
[330749091,1719755465815,-500.0,0.00013917,3]
[330749092,1719755465824,-151.0,0.00013917,2]
[330749093,1719755465833,-500.0,0.00013917,3]
[330749094,1719755465843,-661.02,0.00013917,3]
[330749095,1719755465852,-2904.97,0.00013917,3]
[330749096,1719755465861,-500.0,0.00013917,3]
[330749097,1719755465871,-455.51047801,0.00013917,3]
[330749098,1719755465880,-507.72,0.00013917,3]
[330749099,1719755465889,-500.0,0.00013917,3]
[330749100,1719755465899,-1290.65,0.00013917,3]
[330749101,1719755465909,-500.0,0.00013917,3]
[330749102,1719755465919,-554.44,0.00013917,3]
[330749103,1719755465927,-151.0,0.00013917,2]
[330749104,1719755465940,-500.0,0.00013917,3]
[330749105,1719755465950,-578.69,0.00013917,3]
[330749106,1719755465959,-279.01604,0.00013917,2]
[330749107,1719755465968,-500.0,0.00013917,3]
[330749108,1719755465978,-500.0,0.00013917,3]
[330749109,1719755465988,-500.0,0.00013917,3]
[330749110,1719755465998,-151.0,0.00013917,2]
[330749111,1719755466008,-434.467137,0.00013917,2]
[330749112,1719755466017,-655.08,0.00013917,3]
[330749113,1719755466026,-500.0,0.00013917,3]
[330749114,1719755466036,-1361.14,0.00013917,3]
[330749115,1719755466046,-500.0,0.00013917,3]
[330749116,1719755466055,-434.467137,0.00013917,2]
[330749117,1719755466064,-812.49,0.00013917,3]
[330749118,1719755466074,-500.0,0.00013917,3]
[330749119,1719755466083,-500.0,0.00013917,3]
[330749120,1719755466093,-634.96,0.00013917,3]
[330749121,1719755466103,-500.0,0.00013917,3]
[330749122,1719755466113,-500.0,0.00013917,3]
[330749123,1719755466123,-500.0,0.00013917,3]
[330749124,1719755466133,-500.0,0.00013917,3]
[330749125,1719755466143,-151.0,0.00013917,2]
[330749126,1719755466152,-787.92,0.00013917,3]
[330749127,1719755466162,-896.65,0.00013917,3]
[330749128,1719755466171,-151.0,0.00013917,2]
[330749129,1719755466181,-500.0,0.00013917,3]
[330749130,1719755466190,-500.0,0.00013917,3]
[330749131,1719755466200,-500.0,0.00013917,3]
[330749132,1719755466210,-1488.55,0.00013917,3]
[330749133,1719755466219,-151.0,0.00013917,2]
[330749134,1719755466229,-500.0,0.00013917,3]
[330749135,1719755466239,-500.0,0.00013917,3]
[330749136,1719755466248,-584.33,0.00013917,3]
[330749137,1719755466258,-1089.27,0.00013917,3]
[330749138,1719755466268,-500.0,0.00013917,3]
[330749139,1719755466278,-500.0,0.00013917,3]
[330749140,1719755466288,-500.0,0.00013917,3]
[330749141,1719755466298,-2577.34,0.00013917,3]
[330749142,1719755466307,-500.0,0.00013917,3]
[330749143,1719755466316,-500.0,0.00013917,3]
[330749144,1719755466326,-500.0,0.00013917,3]
[330749145,1719755466335,-516.98,0.00013917,3]
[330749146,1719755466344,-500.0,0.00013917,3]
[330749147,1719755466353,-664.84,0.00013917,3]
[330749148,1719755466363,-500.0,0.00013917,3]
[330749149,1719755466372,-1350.77,0.00013917,3]
[330749150,1719755466381,-1835.59,0.00013917,3]
[330749151,1719755466391,-500.0,0.00013917,3]
[330749152,1719755466400,-500.0,0.00013917,3]
[330749153,1719755466413,-156.13682179,0.00013948,2]
[330749154,1719755466423,-150.0,0.0001395,2]
[330749155,1719755466432,-587.0,0.00013952,2]
[330749156,1719755466441,-888.41105869,0.00013953,2]
[330749157,1719755466450,-1135.43,0.00013954,3]
[330749158,1719755466459,-151.0,0.00013954,2]
[330749159,1719755466468,-1617.34,0.00013954,3]
[330749160,1719755466478,-151.0,0.00013954,2]
[330749161,1719755466488,-151.0,0.00013954,2]
[330749162,1719755466498,-151.0,0.00013954,2]
[330749163,1719755466508,-508.002238,0.00013954,2]
[330749164,1719755466518,-151.0,0.00013954,2]
[330749165,1719755466527,-508.002238,0.00013954,2]
[330749166,1719755466538,-1220.92,0.00013954,3]
[330749167,1719755466547,-151.0,0.00013954,2]
[330749168,1719755466557,-151.0,0.00013954,2]
[330749169,1719755466567,-1771.17541,0.00013954,2]
[330749170,1719755466580,-151.0,0.00013954,2]
[330749171,1719755466594,-1771.17541,0.00013954,2]
[330749172,1719755466603,-151.0,0.00013954,2]
[330749173,1719755466613,-529.92,0.00013954,3]
[330749174,1719755466623,-1337.79,0.00013954,3]
[330749175,1719755466633,-1162.53,0.00013954,3]
[330749176,1719755466642,-3818.29,0.00013956,3]
[330749177,1719755466651,-151.0,0.00013956,2]
[330749178,1719755466663,-151.0,0.00013956,2]
[330749179,1719755466672,-151.998453,0.00013956,2]
[330749180,1719755466682,-151.0,0.00013956,2]
[330749181,1719755466693,-151.0,0.00013956,2]
[330749182,1719755466702,-434.467137,0.00013956,2]
[330749183,1719755466712,-434.467137,0.00013956,2]
[330749184,1719755466721,-151.0,0.00013956,2]
[330749185,1719755466730,-151.0,0.00013956,2]
[330749186,1719755466740,-151.0,0.00013956,2]
[330749187,1719755466749,-151.0,0.00013964,2]
[330749188,1719755466759,-151.0,0.00013964,2]
[330749189,1719755466768,-229.488912,0.00013964,2]
[330749190,1719755466777,-229.488912,0.00013964,2]
[330749191,1719755466787,-151.0,0.00013964,2]
[330749192,1719755466797,-260.262568,0.00013964,2]
[330749193,1719755466806,-191.884164,0.00013964,2]
[330749194,1719755466816,-191.884164,0.00013964,2]
[330749195,1719755466826,-360.0,0.0001397,2]
[330749196,1719755466835,-1830.0,0.0001397,2]
[330749197,1719755466844,-1657.0,0.0001397,2]
[330749198,1719755466854,-1274.0,0.0001397,2]
[330749199,1719755466863,-813.0,0.0001397,2]
[330749200,1719755466872,-166.0,0.0001397,2]
[330749201,1719755466882,-443.0,0.0001397,2]
[330749202,1719755466892,-618.0,0.0001397,2]
[330749203,1719755466901,-448.0,0.0001397,2]
[330749204,1719755466911,-1304.0,0.0001397,2]
[330749205,1719755466920,-2415.0,0.0001397,2]
[330749206,1719755466929,-150.0,0.0001397,2]
[330749207,1719755466938,-3204.0,0.0001397,2]
[330749208,1719755466948,-1986.0,0.0001397,2]
[330749209,1719755466958,-548.0,0.0001397,2]
[330749210,1719755466967,-291.0,0.0001397,2]
[330749211,1719755466976,-5173.0,0.0001397,2]
[330749212,1719755466986,-1663.0,0.0001397,2]
[330749213,1719755466996,-5806.0,0.0001397,2]
[330749214,1719755467006,-38209.0,0.0001397,2]
[330749215,1719755467016,-1198.0,0.0001397,2]
[330749216,1719755467025,-152.0,0.0001397,2]
[330749217,1719755467035,-209.076,0.0001397,2]
[330749218,1719755467045,-152.0,0.0001397,2]
[330749219,1719755467054,-151.174,0.0001397,2]
[330749220,1719755467064,-151.0,0.0001397,2]
[330749221,1719755467073,-151.0,0.0001397,2]
[330749222,1719755467083,-151.0,0.0001397,2]
[330749223,1719755467092,-182.861239,0.0001397,2]
[330749224,1719755467102,-182.861239,0.0001397,2]
[330749225,1719755467111,-151.0,0.0001397,2]
[330749226,1719755467120,-194.6148,0.0001397,2]
[330749227,1719755467130,-194.6148,0.0001397,2]
[330749228,1719755467139,-152.06256,0.0001397,2]
[330749229,1719755467148,-151.0,0.0001397,2]
[330749230,1719755467158,-288.507405,0.0001397,2]
[330749231,1719755467170,-239.66837819,0.00013975,2]
[330749232,1719755467181,-201.20067576,0.00013975,2]
[330749233,1719755467191,-580.13,0.00013977,2]
[330749234,1719755467201,-674.1,0.0001398,2]
[330749235,1719755467211,-2148.15,0.00013984,3]
[330749236,1719755467220,-1274.99,0.00013984,3]
[330749237,1719755467230,-1268.27197819,0.00013988,2]
[330749238,1719755467239,-91364.53652217,0.00013989,2]
[330749239,1719755467249,-318791.33375459,0.00013989,2]
[330749240,1719755467258,-151.0,0.00013989,2]
[330749241,1719755467268,-151.0,0.00013989,2]
[330749242,1719755467278,-151.0,0.00013989,2]
[330749243,1719755467287,-190.718212,0.00013989,2]
[330749244,1719755467297,-151.0,0.00013989,2]
[330749245,1719755467306,-170.960151,0.00013989,2]
[330749246,1719755467316,-151.0,0.00013989,2]
[330749247,1719755467325,-151.0,0.00013989,2]
[330749248,1719755467340,-151.0,0.00013989,2]
[330749249,1719755467350,-151.0,0.00013989,2]
[330749250,1719755467359,-151.0,0.00013989,2]
[330749251,1719755467369,-189.9264,0.00013989,2]
[330749252,1719755467379,-189.9264,0.00013989,2]
[330749253,1719755467388,-151.0,0.00013989,2]
[330749254,1719755467397,-151.0,0.00013989,2]
[330749255,1719755467406,-151.0,0.00013989,2]
[330749256,1719755467417,-182.861239,0.00013989,2]
[330749257,1719755467426,-182.861239,0.00013989,2]
[330749258,1719755467435,-151.0,0.00013989,2]
[330749259,1719755467445,-194.6148,0.00013989,2]
[330749260,1719755467454,-194.6148,0.00013989,2]
[330749261,1719755467464,-151.0,0.00013989,2]
[330749262,1719755467475,-151.0,0.00013989,2]
[330749263,1719755467484,-166.844814,0.00013989,2]
[330749264,1719755467494,-166.844814,0.00013989,2]
[330749265,1719755467503,-168.491002,0.00013989,2]
[330749266,1719755467512,-168.491002,0.00013989,2]
[330749267,1719755467525,-525.835346,0.00013989,2]
[330749268,1719755467534,-525.835346,0.00013989,2]
[330749269,1719755467543,-151.0,0.00013989,2]
[330749270,1719755467552,-168.99989,0.00013989,2]
[330749271,1719755467561,-188.75,0.00013989,2]
[330749272,1719755467571,-188.75,0.00013989,2]
[330749273,1719755467584,-151.0,0.00013989,2]
[330749274,1719755467593,-151.0,0.00013989,2]
[330749275,1719755467603,-151.0,0.00013989,2]
[330749276,1719755467612,-151.0,0.00013989,2]
[330749277,1719755467622,-151.0,0.00013989,2]
[330749278,1719755467631,-176.516279,0.00013989,2]
[330749279,1719755467640,-151.0,0.00013989,2]
[330749280,1719755467650,-151.0,0.00013989,2]
[330749281,1719755467662,-623.674199,0.00013989,2]
[330749282,1719755467672,-623.674199,0.00013989,2]
[330749283,1719755467681,-151.0,0.00013989,2]
[330749284,1719755467691,-151.0,0.00013989,2]
[330749285,1719755467701,-211.455261,0.00013989,2]
[330749286,1719755467710,-230.573438,0.00013989,2]
[330749287,1719755467720,-211.455261,0.00013989,2]
[330749288,1719755467729,-230.573438,0.00013989,2]
[330749289,1719755467738,-417.916904,0.00013989,2]
[330749290,1719755467747,-417.916904,0.00013989,2]
[330749291,1719755467756,-151.0,0.00013989,2]
[330749292,1719755467766,-151.0,0.00013989,2]
[330749293,1719755467775,-151.0,0.00013989,2]
[330749294,1719755467784,-151.0,0.00013989,2]
[330749295,1719755467794,-623.056921,0.00013989,2]
[330749296,1719755467803,-623.056921,0.00013989,2]
[330749297,1719755467812,-190.505494,0.00013989,2]
[330749298,1719755467821,-190.505494,0.00013989,2]
[330749299,1719755467830,-151.0,0.00013989,2]
[330749300,1719755467839,-1021.286789,0.00013989,2]
[330749301,1719755467848,-1021.286789,0.00013989,2]
[330749302,1719755467857,-151.0,0.00013989,2]
[330749303,1719755467867,-445.294759,0.00013989,2]
[330749304,1719755467877,-445.294759,0.00013989,2]
[330749305,1719755467886,-151.0,0.00013989,2]
[330749306,1719755467896,-151.0,0.00013989,2]
[330749307,1719755467905,-151.0,0.00013989,2]
[330749308,1719755467916,-151.0,0.00013989,2]
[330749309,1719755467925,-151.0,0.00013989,2]
[330749310,1719755467934,-437.423639,0.00013989,2]
[330749311,1719755467943,-151.0,0.00013989,2]
[330749312,1719755467953,-437.423639,0.00013989,2]
[330749313,1719755467962,-230.305039,0.00013989,2]
[330749314,1719755467971,-230.305039,0.00013989,2]
[330749315,1719755467981,-9703.03304,0.00013989,2]
[330749316,1719755467991,-9703.03304,0.00013989,2]
[330749317,1719755468000,-230.305039,0.00013989,2]
[330749318,1719755468009,-230.305039,0.00013989,2]
[330749319,1719755468019,-503.060598,0.00013989,2]
[330749320,1719755468028,-503.060598,0.00013989,2]
[330749321,1719755468038,-304.780686,0.00013989,2]
[330749322,1719755468048,-304.780686,0.00013989,2]
[330749323,1719755468057,-503.060598,0.00013989,2]
[330749324,1719755468067,-503.060598,0.00013989,2]
[330749325,1719755468078,-573.903452,0.00013989,2]
[330749326,1719755468087,-304.780686,0.00013989,2]
[330749327,1719755468096,-304.780686,0.00013989,2]
[330749328,1719755468106,-1083.957781,0.00013989,2]
[330749329,1719755468116,-1083.957781,0.00013989,2]
[330749330,1719755468128,-573.903452,0.00013989,2]
[330749331,1719755468138,-1083.957781,0.00013989,2]
[330749332,1719755468147,-1083.957781,0.00013989,2]
[330749333,1719755468157,-267.298398,0.00013989,2]
[330749334,1719755468170,-267.298398,0.00013989,2]
[330749335,1719755468179,-151.0,0.00013989,2]
[330749336,1719755468189,-267.298398,0.00013989,2]
[330749337,1719755468202,-267.298398,0.00013989,2]
[330749338,1719755468212,-151.0,0.00013989,2]
[330749339,1719755468221,-231.851772,0.00013989,2]